bitfinex-derivatives/quotes_BNBF0:USTF0_20251219
["timestamp","ask_amount","ask_price","bid_price","bid_amount"]
[1766157546532,2.84834666,854.8,850.99,0.84851921]
[1766157546730,2.84834666,854.66,850.98,0.84851921]
[1766157547125,2.84834666,854.42,850.75,0.84851921]
[1766157547325,2.84834666,854.42,850.7,0.84851921]
[1766157547525,2.84834666,854.42,850.74,0.84851921]
[1766157547729,2.84834666,854.49,850.74,0.84851921]
[1766157548429,2.84834666,854.49,850.71,0.84851921]
[1766157548630,2.84834666,854.49,850.73,0.84851921]
[1766157548825,2.84834666,854.54,850.76,0.84851921]
[1766157549230,2.84834666,854.55,850.79,0.84851921]
[1766157549429,2.84834666,854.55,850.74,0.84851921]
[1766157549724,2.84834666,854.58,850.74,0.84851921]
[1766157550230,2.84834666,854.39,850.58,0.84851921]
[1766157550432,2.84834666,854.39,850.49,0.84851921]
[1766157550630,2.84834666,854.39,850.45,0.84851921]
[1766157550831,2.84834666,854.34,850.45,0.84851921]
[1766157551332,2.84834666,854.37,850.43,0.84851921]
[1766157551931,2.84834666,854.37,850.42,0.84851921]
[1766157552235,2.84834666,854.37,850.16,0.84851921]
[1766157552436,2.84834666,854.09,849.9,0.01243982]
[1766157552834,2.84834666,853.9,849.9,0.01243982]
[1766157553936,2.84834666,853.75,849.9,0.01243982]
[1766157554532,2.84834666,853.63,850.18,0.20437227]
[1766157554933,3.98768533,853.94,850.18,0.20437227]
[1766157554934,2.84834666,853.48,850.18,0.20437227]
[1766157555137,2.84834666,853.66,850.18,0.20437227]
[1766157555635,2.84834666,853.8,850.18,0.20437227]
[1766157556331,2.84834666,853.95,850.18,0.20437227]
[1766157556933,2.84834666,853.98,850.18,0.20437227]
[1766157557541,2.84834666,854.02,850.18,0.20437227]
[1766157558040,2.84834666,854.08,850.18,0.20437227]
[1766157558540,2.84834666,854.16,850.18,0.20437227]
[1766157559537,2.84834666,854.17,850.18,0.20437227]
[1766157560136,2.84834666,854.05,850.18,0.20437227]
[1766157560746,2.84834666,853.85,849.23,0.84851921]
[1766157560945,2.84834666,853.85,849.98,0.20440168]
[1766157561143,2.84834666,853.63,849.98,0.20440168]
[1766157561540,2.84834666,853.63,849.13,0.01011428]
[1766157561767,2.84834666,853.55,848.82,0.84851921]
[1766157561942,2.84834666,853.55,849.68,0.20448336]
[1766157562143,2.84834666,853.33,848.83,0.00934154]
[1766157562339,2.84834666,853.33,849.62,0.20450559]
[1766157562841,2.84834666,853.23,849.62,0.20450559]
[1766157563143,2.84834666,853.42,849.62,0.20450559]
[1766157563346,2.84834666,853.56,849.62,0.20450559]
[1766157563946,2.84834666,853.55,849.62,0.20450559]
[1766157564449,2.84834666,853.59,849.62,0.20450559]
[1766157564743,2.84834666,853.68,849.62,0.20450559]
[1766157565746,2.84834666,853.73,849.62,0.20450559]
[1766157566249,2.84834666,853.71,849.62,0.20450559]
[1766157566748,2.84834666,853.29,848.77,0.00947242]
[1766157567051,1.69470728,852.4,849.35,0.20453443]
[1766157567244,1.69470728,852.37,847.95,0.84851921]
[1766157567451,1.69470728,852.38,849.16,0.20460719]
[1766157567649,1.69470728,852.37,847.82,0.84851921]
[1766157567859,1.69470728,852.25,849.02,0.20470347]
[1766157568046,1.69470728,852.16,849.02,0.20470347]
[1766157568249,53.42812701,852.76,848.17,0.01510478]
[1766157568250,1.69470728,852.01,848.17,0.01510478]
[1766157568551,1.69470728,852.1,848.75,0.20475105]
[1766157568752,1.69470728,852.11,848.75,0.20475105]
[1766157569152,1.69470728,851.98,848.75,0.20475105]
[1766157569451,1.69470728,851.91,847.9,0.01084766]
[1766157569752,1.69470728,851.91,848.52,0.20481914]
[1766157569952,1.69470728,851.92,848.52,0.20481914]
[1766157570148,1.69470728,851.91,848.52,0.20481914]
[1766157570353,1.69470728,851.96,848.52,0.20481914]
[1766157570547,1.69470728,852.0,848.52,0.20481914]
[1766157570847,53.42812701,852.76,848.52,0.20481914]
[1766157570848,1.69470728,852.1,848.52,0.20481914]
[1766157571051,2.84834666,852.69,848.52,0.20481914]
[1766157571052,1.69470728,852.08,848.52,0.20481914]
[1766157571252,1.69470728,852.02,848.52,0.20481914]
[1766157571448,1.69470728,851.96,848.52,0.20481914]
[1766157571748,1.69470728,851.87,848.34,0.20485892]
[1766157572152,1.69470728,851.95,848.34,0.20485892]
[1766157572350,1.69470728,852.03,848.34,0.20485892]
[1766157572550,1.69470728,852.26,848.34,0.20485892]
[1766157572750,1.69470728,852.28,848.34,0.20485892]
[1766157572950,1.69470728,852.43,848.34,0.20485892]
[1766157573254,1.69470728,852.41,848.34,0.20485892]
[1766157573454,1.69470728,852.48,848.34,0.20485892]
[1766157573650,1.69470728,852.58,848.34,0.20485892]
[1766157574456,1.69470728,852.72,848.34,0.20485892]
[1766157574955,1.69470728,852.71,848.34,0.20485892]
[1766157575255,1.69470728,852.73,848.34,0.20485892]
[1766157575458,1.69470728,852.75,848.34,0.20485892]
[1766157575657,53.42812701,852.76,848.34,0.20485892]
[1766157577056,1.69470728,852.58,848.34,0.20485892]
[1766157577256,1.69470728,852.61,848.34,0.20485892]
[1766157577757,1.69470728,852.54,848.34,0.20485892]
[1766157577956,1.69470728,852.45,848.34,0.20485892]
[1766157578159,1.69470728,852.37,848.34,0.20485892]
[1766157578360,1.69470728,852.24,848.34,0.20485892]
[1766157578857,1.69470728,852.31,848.34,0.20485892]
[1766157579362,1.69470728,851.98,847.49,0.01139656]
[1766157579654,1.69470728,851.98,846.64,0.21522458]
[1766157579655,1.69470728,851.8,847.95,0.20490959]
[1766157580060,1.69470728,851.62,847.1,0.01011226]
[1766157580260,1.69470728,851.74,847.83,0.20498985]
[1766157580459,1.69470728,851.81,847.83,0.20498985]
[1766157580762,1.69470728,851.92,847.83,0.20498985]
[1766157581055,1.69470728,852.0,847.83,0.20498985]
[1766157581257,1.69470728,852.15,847.83,0.20498985]
[1766157581460,1.69470728,852.18,847.83,0.20498985]
[1766157581959,1.69470728,852.19,847.83,0.20498985]
[1766157582257,1.69470728,852.21,847.83,0.20498985]
[1766157583259,1.69470728,852.09,847.83,0.20498985]
[1766157583457,1.69470728,851.93,847.83,0.20498985]
[1766157583654,1.69470728,851.87,847.83,0.20498985]
[1766157583855,1.69470728,851.84,847.83,0.20498985]
[1766157584258,1.69470728,851.85,847.83,0.20498985]
[1766157584462,1.69470728,852.15,847.83,0.20498985]
[1766157584655,56.27647367,852.76,847.83,0.20498985]
[1766157584656,1.69470728,852.16,847.83,0.20498985]
[1766157585260,1.69470728,852.17,847.83,0.20498985]
[1766157586258,1.69470728,852.18,847.83,0.20498985]
[1766157586759,1.69470728,852.26,847.83,0.20498985]
[1766157586964,1.69470728,852.28,847.83,0.20498985]
[1766157588162,1.69470728,852.25,847.83,0.20498985]
[1766157588862,1.69470728,851.83,847.83,0.20498985]
[1766157589065,1.69470728,851.71,847.83,0.20498985]
[1766157589269,1.69470728,851.65,846.98,0.00991723]
[1766157589564,1.69470728,851.54,847.58,0.2050436]
[1766157589765,1.69470728,851.33,845.14,0.84851921]
[1766157589967,1.69470728,851.42,847.33,0.20509859]
[1766157590170,1.66153613,851.55,846.48,0.00994969]
[1766157590365,1.66153613,851.76,847.51,0.2050285]
[1766157591273,1.66153613,851.73,847.51,0.2050285]
[1766157591473,1.66153613,851.76,847.51,0.2050285]
[1766157591673,1.66153613,851.75,847.51,0.2050285]
[1766157591874,1.66153613,851.66,847.51,0.2050285]
[1766157592274,1.66153613,851.65,847.51,0.2050285]
[1766157592474,1.66153613,851.79,847.51,0.2050285]
[1766157593170,1.66153613,851.8,847.51,0.2050285]
[1766157593373,1.66153613,851.9,847.51,0.2050285]
[1766157593576,1.66153613,851.87,847.51,0.2050285]
[1766157593771,1.66153613,851.84,847.51,0.2050285]
[1766157594071,1.66153613,851.74,847.51,0.2050285]
[1766157594274,1.66153613,851.95,847.51,0.2050285]
[1766157595177,1.66153613,851.9,847.51,0.2050285]
[1766157595474,1.66153613,851.84,847.51,0.2050285]
[1766157595676,1.66153613,851.75,847.51,0.2050285]
[1766157596276,1.66153613,851.69,847.51,0.2050285]
[1766157596473,1.66153613,851.7,847.51,0.2050285]
[1766157596677,1.66153613,851.66,847.51,0.2050285]
[1766157596878,1.66153613,851.53,847.51,0.2050285]
[1766157597480,1.66153613,851.68,847.51,0.2050285]
[1766157597675,1.66153613,851.82,847.51,0.2050285]
[1766157598176,1.66153613,851.75,847.51,0.2050285]
[1766157598781,1.66153613,851.79,847.51,0.2050285]
[1766157599381,1.66153613,851.77,847.51,0.2050285]
[1766157599580,1.66153613,851.71,847.51,0.2050285]
[1766157599783,1.66153613,851.67,847.51,0.2050285]
[1766157600382,1.66153613,851.63,847.51,0.2050285]
[1766157600782,1.66153613,851.57,847.51,0.2050285]
[1766157600985,1.66153613,851.52,847.51,0.2050285]
[1766157601282,1.66153613,851.54,847.51,0.2050285]
[1766157601482,1.66153613,851.82,847.51,0.2050285]
[1766157601785,1.66153613,851.99,847.51,0.2050285]
[1766157602286,1.66153613,851.84,847.51,0.2050285]
[1766157602482,1.66153613,851.71,847.51,0.2050285]
[1766157603180,1.66153613,851.78,847.51,0.2050285]
[1766157603386,1.66153613,851.97,847.51,0.2050285]
[1766157603879,1.66153613,852.01,847.51,0.2050285]
[1766157604384,1.66153613,851.73,847.51,0.2050285]
[1766157605084,1.66153613,851.74,847.51,0.2050285]
[1766157605286,1.66153613,851.66,847.51,0.2050285]
[1766157606381,1.66153613,851.5,847.51,0.2050285]
[1766157606587,1.66153613,851.38,847.51,0.2050285]
[1766157606891,1.66153613,851.28,847.51,0.2050285]
[1766157607288,1.66153613,851.24,847.51,0.2050285]
[1766157607788,1.66153613,851.09,847.51,0.2050285]
[1766157607985,1.66153613,851.02,847.51,0.2050285]
[1766157608292,1.66153613,850.96,847.51,0.2050285]
[1766157608587,1.66153613,851.09,847.51,0.2050285]
[1766157609288,1.66153613,851.03,847.51,0.2050285]
[1766157609486,3.98768533,852.0,847.51,0.2050285]
[1766157609487,1.66153613,850.95,847.51,0.2050285]
[1766157609684,1.66153613,850.97,847.51,0.2050285]
[1766157610288,1.66153613,850.96,847.51,0.2050285]
[1766157610685,1.66153613,851.02,847.51,0.2050285]
[1766157610883,1.66153613,851.18,847.51,0.2050285]
[1766157611088,1.66153613,851.17,847.51,0.2050285]
[1766157611289,1.66153613,851.03,847.51,0.2050285]
[1766157611590,2.84834666,851.64,847.51,0.2050285]
[1766157611591,1.66153613,850.81,847.51,0.2050285]
[1766157611791,1.66153613,850.72,847.51,0.2050285]
[1766157612192,1.66153613,850.58,847.51,0.2050285]
[1766157612394,1.66153613,850.61,846.66,0.86033513]
[1766157612595,1.66153613,850.61,846.36,1.65002246]
[1766157612596,1.66153613,850.64,847.48,0.20507623]
[1766157612789,1.66153613,850.73,847.48,0.20507623]
[1766157612991,1.66153613,850.72,847.48,0.20507623]
[1766157613293,1.66153613,850.79,847.48,0.20507623]
[1766157613494,1.66153613,850.89,847.48,0.20507623]
[1766157613689,1.66153613,850.9,847.48,0.20507623]
[1766157614392,1.66153613,850.87,847.48,0.20507623]
[1766157614594,1.66153613,850.78,847.48,0.20507623]
[1766157614786,1.66153613,850.66,847.48,0.20507623]
[1766157614988,1.66153613,850.69,847.48,0.20507623]
[1766157615391,1.66153613,850.66,847.48,0.20507623]
[1766157615693,1.66153613,850.64,847.48,0.20507623]
[1766157615994,1.66153613,850.68,847.48,0.20507623]
[1766157616193,1.66153613,850.73,847.48,0.20507623]
[1766157616493,1.66153613,850.76,847.48,0.20507623]
[1766157617089,1.66153613,850.78,847.48,0.20507623]
[1766157617290,1.66153613,850.81,847.48,0.20507623]
[1766157617594,1.66153613,850.76,847.48,0.20507623]
[1766157617990,1.66153613,850.75,847.48,0.20507623]
[1766157618392,1.66153613,850.68,847.48,0.20507623]
[1766157619394,1.66153613,850.57,847.48,0.20507623]
[1766157619594,1.66153613,850.53,847.48,0.20507623]
[1766157619792,1.66153613,850.34,847.48,0.20507623]
[1766157620298,1.66153613,850.31,847.08,0.84851921]
[1766157620495,1.66153613,850.09,846.97,0.84851921]
[1766157620697,1.66153613,850.09,846.23,0.01216418]
[1766157620698,1.66153613,850.21,847.37,0.20507139]
[1766157620894,1.66153613,850.38,847.37,0.20507139]
[1766157621299,1.66153613,850.32,847.37,0.20507139]
[1766157621500,1.66153613,850.43,847.41,0.84851921]
[1766157621698,1.66153613,850.61,847.59,0.84851921]
[1766157621898,1.66153613,850.75,847.73,0.84851921]
[1766157622099,1.66153613,850.76,847.74,0.84851921]
[1766157622298,1.66153613,850.76,847.59,1.13532517]
[1766157622299,1.66153613,850.72,847.77,0.84851921]
[1766157622494,1.66153613,850.71,847.78,0.84851921]
[1766157622897,1.66153613,850.73,847.79,0.84851921]
[1766157623093,1.66153613,850.72,847.79,0.84851921]
[1766157623400,1.66153613,850.66,847.84,0.84851921]
[1766157624397,1.66153613,850.59,847.9,0.84851921]
[1766157624794,1.66153613,850.57,847.88,0.84851921]
[1766157625493,1.66153613,850.48,847.95,0.84851921]
[1766157625696,1.66153613,850.55,848.03,0.84851921]
[1766157625899,1.66153613,850.54,848.01,0.84851921]
[1766157626099,1.66153613,850.53,848.0,0.84851921]
[1766157626302,1.66153613,850.42,848.06,0.84851921]
[1766157626600,1.66153613,850.4,848.04,0.84851921]
[1766157627201,1.66153613,850.36,848.07,0.84851921]
[1766157627398,1.66153613,850.36,848.08,0.84851921]
[1766157627703,1.66153613,850.33,848.05,0.84851921]
[1766157627904,1.66153613,850.14,847.86,0.84851921]
[1766157628197,5.69669333,851.93,847.37,0.20507139]
[1766157628198,1.66153613,850.03,847.75,0.84851921]
[1766157628400,1.66153613,850.03,847.37,0.20507139]
[1766157628401,1.66153613,850.06,847.82,0.84851921]
[1766157628601,1.66153613,850.07,847.82,0.84851921]
[1766157629299,1.66153613,850.06,847.83,0.84851921]
[1766157630002,1.66153613,850.05,847.83,0.84851921]
[1766157630503,1.66153613,850.04,847.83,0.84851921]
[1766157630803,1.66153613,850.15,847.93,0.84851921]
[1766157631404,1.66153613,850.14,847.94,0.84851921]
[1766157632400,1.66153613,850.13,847.95,0.84851921]
[1766157633304,1.66153613,850.15,848.01,0.84851921]
[1766157634104,1.66153613,850.11,847.97,0.84851921]
[1766157634306,1.66153613,850.08,848.01,0.84851921]
[1766157634605,1.66153613,850.12,848.04,0.84851921]
[1766157635005,1.66153613,850.15,848.07,0.84851921]
[1766157635306,1.66153613,850.14,848.15,0.84851921]
[1766157635502,1.66153613,850.14,848.16,0.84851921]
[1766157635809,1.66153613,850.13,848.15,0.84851921]
[1766157636003,1.66153613,849.74,847.76,0.84851921]
[1766157636205,1.66153613,849.59,847.62,0.84851921]
[1766157636404,1.66153613,849.54,847.66,0.84851921]
[1766157636609,1.66153613,849.59,847.71,0.84851921]
[1766157636902,1.66153613,849.83,847.95,0.84851921]
[1766157637308,1.66153613,849.69,847.89,0.84851921]
[1766157638113,1.66153613,849.46,847.65,0.84851921]
[1766157638303,1.66153613,849.38,847.59,0.84851921]
[1766157639002,1.66153613,849.4,847.61,0.84851921]
[1766157639709,1.66153613,849.41,847.61,0.84851921]
[1766157639909,1.66153613,849.45,847.65,0.84851921]
[1766157640104,1.66153613,849.52,847.72,0.84851921]
[1766157640304,1.66153613,849.53,847.73,0.84851921]
[1766157640505,1.66153613,849.54,847.72,0.84851921]
[1766157641204,1.66153613,849.54,847.73,0.84851921]
[1766157641405,1.66153613,849.67,847.87,0.84851921]
[1766157641606,2.84834666,850.29,847.88,0.84851921]
[1766157641607,1.66153613,849.68,847.88,0.84851921]
[1766157642209,1.66153613,849.85,848.06,0.84851921]
[1766157643208,1.66153613,849.84,848.06,0.84851921]
[1766157643409,1.66153613,849.84,848.07,0.84851921]
[1766157644607,1.66153613,849.5,847.74,0.84851921]
[1766157644808,1.66153613,849.01,847.15,0.84851921]
[1766157645010,1.66153613,848.79,847.03,0.84851921]
[1766157645205,1.66153613,848.75,847.0,0.84851921]
[1766157645404,1.66153613,848.78,846.92,0.84851921]
[1766157645809,3.98768533,849.7,846.98,0.84851921]
[1766157645810,1.66153613,848.84,846.98,0.84851921]
[1766157646004,1.66153613,849.11,847.25,0.84851921]
[1766157646310,1.66153613,849.12,847.26,0.84851921]
[1766157646509,1.66153613,849.12,847.11,1.13532517]
[1766157646510,1.66153613,849.15,847.25,0.84851921]
[1766157646707,1.66153613,849.32,847.42,0.84851921]
[1766157647408,1.66153613,849.33,847.42,0.84851921]
[1766157647613,1.66153613,849.36,847.45,0.84851921]
[1766157648207,1.66153613,849.49,847.58,0.84851921]
[1766157648412,1.66153613,849.49,847.59,0.84851921]
[1766157648810,1.66153613,849.49,847.58,0.84851921]
[1766157649115,1.66153613,849.47,847.56,0.84851921]
[1766157649914,0.20508469,849.0,847.56,0.84851921]
[1766157650416,0.20508469,849.0,847.55,0.84851921]
[1766157651118,0.20508469,849.0,847.53,0.84851921]
[1766157651317,0.20508469,849.0,847.5,0.84851921]
[1766157651520,0.20508469,849.0,847.49,0.84851921]
[1766157651720,0.20508469,849.0,847.5,0.84851921]
[1766157652320,0.20508469,849.0,847.49,0.84851921]
[1766157652821,0.20508469,849.0,847.34,1.13532517]
[1766157653019,0.20508469,849.0,847.49,0.87057501]
[1766157653319,0.20508469,849.0,847.34,1.13532517]
[1766157653320,0.20508469,849.0,847.48,0.87057501]
[1766157654524,0.20508469,849.0,847.46,0.87057501]
[1766157654726,1.66153613,848.84,846.87,0.87057501]
[1766157654920,1.66153613,848.71,846.75,0.87057501]
[1766157655426,1.66153613,848.76,846.71,0.87057501]
[1766157656226,1.66153613,848.76,846.7,0.87057501]
[1766157656526,1.66153613,848.8,846.67,0.87057501]
[1766157657432,1.66153613,848.84,846.64,0.87057501]
[1766157658330,1.66153613,848.87,846.61,0.87057501]
[1766157659035,0.20508469,849.0,846.78,0.87057501]
[1766157659335,0.20508469,849.0,846.77,0.87057501]
[1766157659835,0.20508469,849.0,846.82,0.87057501]
[1766157660331,0.20508469,849.0,846.83,0.87057501]
[1766157660531,0.20508469,849.0,846.82,0.87057501]
[1766157660734,0.20508469,849.0,846.93,0.87057501]
[1766157661638,0.20508469,849.0,846.94,0.87057501]
[1766157662442,0.20508469,849.0,846.95,0.87057501]
[1766157662644,0.20508469,849.0,846.87,0.87057501]
[1766157662842,0.20508469,849.0,846.81,0.87057501]
[1766157663238,1.66153613,848.98,846.69,0.87057501]
[1766157663442,1.66153613,848.94,846.65,0.87057501]
[1766157663738,1.66153613,848.66,846.38,0.87057501]
[1766157663944,1.66153613,848.66,846.51,0.20528733]
[1766157664243,0.20508469,849.0,846.51,0.20528733]
[1766157664244,1.66153613,848.71,846.51,0.20528733]
[1766157664443,1.66153613,848.88,846.56,0.87057501]
[1766157665246,1.66153613,848.89,846.55,0.87057501]
[1766157665441,1.66153613,848.76,846.51,0.20528733]
[1766157665843,1.66153613,848.79,846.51,0.20528733]
[1766157666044,0.20508469,849.0,846.53,0.87057501]
[1766157666045,1.66153613,848.87,846.53,0.87057501]
[1766157666242,1.66153613,848.88,846.53,0.87057501]
[1766157666847,1.66153613,848.87,846.52,0.87057501]
[1766157667147,1.66153613,848.29,845.95,0.87057501]
[1766157667343,1.66153613,848.33,846.1,0.20534608]
[1766157667848,1.66153613,848.32,846.1,0.20534608]
[1766157668144,1.66153613,848.32,845.88,0.87057501]
[1766157668346,1.66153613,848.36,846.1,0.20542184]
[1766157668542,1.66153613,848.37,846.1,0.20542184]
[1766157668847,1.66153613,848.36,846.1,0.20542184]
[1766157669247,1.66153613,848.22,845.61,0.87057501]
[1766157669448,1.66153613,848.21,845.91,0.2054467]
[1766157669846,1.66153613,847.9,845.29,0.87057501]
[1766157670146,1.16011545,847.54,845.64,0.20549947]
[1766157670448,1.16011545,847.57,844.95,0.87057501]
[1766157670649,1.16011545,847.57,845.39,0.20556867]
[1766157670845,1.16011545,847.56,845.39,0.20556867]
[1766157671046,1.16011545,847.55,845.39,0.20556867]
[1766157671248,1.16011545,847.62,845.39,0.20556867]
[1766157671545,1.16011545,847.43,844.78,100.0]
[1766157671750,1.16011545,847.47,844.78,100.0]
[1766157671945,1.16011545,847.47,845.26,0.20562819]
[1766157672147,1.16011545,847.58,845.26,0.20562819]
[1766157672445,1.16011545,847.59,845.26,0.20562819]
[1766157672646,1.16011545,847.5,845.26,0.20562819]
[1766157672845,1.16011545,847.5,844.78,100.0]
[1766157673350,1.16011545,847.57,845.18,0.20565127]
[1766157673552,1.16011545,847.59,845.18,0.20565127]
[1766157673751,1.16011545,847.27,844.33,0.0150679]
[1766157673950,1.16011545,847.18,844.73,0.20570537]
[1766157674154,1.16011545,847.15,844.73,0.20570537]
[1766157674352,1.16011545,847.2,844.73,0.20570537]
[1766157674654,1.16011545,846.9,844.55,0.2057893]
[1766157674850,1.16011545,846.98,844.55,0.2057893]
[1766157675049,1.16011545,847.06,844.55,0.2057893]
[1766157675250,1.16011545,847.14,844.55,0.2057893]
[1766157675450,1.16011545,847.17,844.55,0.2057893]
[1766157675655,1.16011545,847.18,844.55,0.2057893]
[1766157675855,1.16011545,847.31,844.55,0.2057893]
[1766157676252,1.16011545,847.35,844.55,0.2057893]
[1766157676453,1.16011545,847.43,844.55,0.2057893]
[1766157676751,1.16011545,847.59,844.55,0.2057893]
[1766157677252,1.16011545,847.72,844.55,0.2057893]
[1766157677453,1.16011545,847.96,844.55,0.2057893]
[1766157677854,1.16011545,848.18,844.55,0.2057893]
[1766157678356,1.16011545,848.46,844.68,0.87057501]
[1766157678554,1.16011545,848.47,844.68,0.87057501]
[1766157679156,1.16011545,848.48,844.67,0.87057501]
[1766157680258,0.01046117,849.33,844.55,0.2057893]
[1766157680259,1.16011545,848.62,844.79,0.87057501]
[1766157680561,1.73683045,848.78,844.78,0.87057501]
[1766157680759,1.14025248,848.63,844.78,0.87057501]
[1766157680958,1.73683045,848.88,844.88,0.87057501]
[1766157681159,1.73683045,849.04,845.04,0.87057501]
[1766157681356,1.73683045,849.05,845.04,0.87057501]
[1766157681659,1.73683045,849.13,845.12,0.87057501]
[1766157682056,1.73683045,849.19,845.18,0.87057501]
[1766157682259,1.73683045,849.18,845.19,0.87057501]
[1766157682961,1.73683045,849.31,845.32,0.87057501]
[1766157683156,1.73683045,849.3,845.32,0.87057501]
[1766157683356,1.73683045,849.3,845.34,0.87057501]
[1766157683557,1.73683045,849.18,845.22,0.87057501]
[1766157683862,1.73683045,849.17,845.22,0.87057501]
[1766157684259,1.73683045,849.01,845.06,0.87057501]
[1766157684457,1.94191514,849.0,845.07,0.87057501]
[1766157685258,1.73683045,848.99,845.07,0.87057501]
[1766157685462,1.73683045,848.99,845.08,0.87057501]
[1766157685963,0.20508469,849.0,845.19,0.87057501]
[1766157686164,0.20508469,849.0,845.21,0.87057501]
[1766157686363,0.20508469,849.0,845.22,0.87057501]
[1766157686663,0.20508469,849.0,845.09,0.87057501]
[1766157686664,1.73683045,848.96,845.09,0.87057501]
[1766157686864,1.14176288,848.8,845.09,0.87057501]
[1766157687364,1.73683045,848.94,845.11,0.87057501]
[1766157687964,1.73683045,848.89,845.06,0.87057501]
[1766157688464,0.20508469,849.0,845.07,0.87057501]
[1766157688465,1.14251765,848.73,845.07,0.87057501]
[1766157688665,1.73683045,848.92,845.11,0.87057501]
[1766157688865,1.73683045,848.98,845.16,0.87057501]
[1766157689159,1.73683045,848.97,845.17,0.87057501]
[1766157689359,0.20508469,849.0,845.17,0.87057501]
[1766157689360,1.73683045,848.96,845.17,0.87057501]
[1766157689665,0.20508469,849.0,845.27,0.87057501]
[1766157689963,0.20508469,849.0,845.3,0.87057501]
[1766157690363,0.20508469,849.0,845.31,0.87057501]
[1766157690757,0.20508469,849.0,845.35,0.87057501]
[1766157691160,0.20508469,849.0,845.47,0.87057501]
[1766157691364,0.20508469,849.0,845.49,0.87057501]
[1766157691564,0.20508469,849.0,845.59,0.87057501]
[1766157692261,0.20508469,849.0,845.6,0.87057501]
[1766157692462,0.20508469,849.0,845.61,0.87057501]
[1766157692665,0.20508469,849.0,845.54,0.87057501]
[1766157693365,0.20508469,849.0,845.57,0.87057501]
[1766157693860,0.20508469,849.0,845.55,0.87057501]
[1766157694362,0.20508469,849.0,845.57,0.87057501]
[1766157694570,0.20508469,849.0,845.52,0.87057501]
[1766157694762,0.20508469,849.0,844.61,2.90863721]
[1766157694763,1.73683045,848.99,845.42,0.87057501]
[1766157694961,0.20508469,849.0,845.45,0.87057501]
[1766157695368,1.73683045,848.99,845.49,0.87057501]
[1766157696367,1.73683045,848.97,845.5,0.87057501]
[1766157696964,1.14710332,848.72,845.4,0.87057501]
[1766157697365,1.14710332,848.7,845.43,0.87057501]
[1766157698470,1.14710332,848.69,845.44,0.87057501]
[1766157698868,1.14710332,848.66,845.42,0.87057501]
[1766157699365,1.14710332,848.65,845.43,0.87057501]
[1766157699565,1.73683045,848.81,845.44,0.87057501]
[1766157699769,1.73683045,848.85,845.48,0.87057501]
[1766157700267,1.73683045,848.84,845.48,0.87057501]
[1766157700469,1.73683045,848.83,845.49,0.87057501]
[1766157701176,1.73683045,848.82,845.5,0.87057501]
[1766157701367,1.73683045,848.8,845.51,0.87057501]
[1766157701568,1.73683045,848.77,845.48,0.87057501]
[1766157701771,1.14962125,848.62,845.48,0.87057501]
[1766157702071,1.73683045,848.77,845.48,0.87057501]
[1766157702268,1.14987488,848.61,845.49,0.87057501]
[1766157702468,1.14987488,848.58,845.52,0.87057501]
[1766157702869,1.14987488,848.49,845.43,0.87057501]
[1766157703069,1.14987488,848.36,845.3,0.87057501]
[1766157703270,1.14987488,848.27,845.28,0.87057501]
[1766157704375,1.14987488,848.16,845.26,0.87057501]
[1766157704675,1.14987488,848.16,844.37,2.90863721]
[1766157704676,1.14987488,848.1,845.2,0.87057501]
[1766157705168,1.14987488,848.09,845.19,0.87057501]
[1766157706269,1.14987488,848.09,845.2,0.87057501]
[1766157706477,1.14987488,848.09,845.05,1.13532517]
[1766157706668,1.14987488,848.09,845.2,0.86463794]
[1766157706968,1.14987488,848.08,845.19,0.86463794]
[1766157707275,1.14987488,847.73,844.84,0.86463794]
[1766157707573,2.84834666,848.74,844.69,0.86463794]
[1766157707574,1.14987488,847.55,844.69,0.86463794]
[1766157707772,1.14987488,847.55,844.53,1.13532517]
[1766157707773,1.14987488,847.54,844.68,0.86463794]
[1766157708074,2.84834666,848.31,844.0,0.00971988]
[1766157708075,1.14987488,847.61,844.75,0.86463794]
[1766157708374,0.20508469,849.0,844.0,0.00971988]
[1766157708375,1.14987488,847.72,844.89,0.86463794]
[1766157708675,1.14987488,847.76,844.93,0.86463794]
[1766157708875,1.14987488,847.82,844.99,0.86463794]
[1766157709371,1.14987488,847.8,845.01,0.86463794]
[1766157709876,1.14987488,847.81,845.01,0.86463794]
[1766157710072,1.14987488,848.13,845.33,0.86463794]
[1766157710271,1.14987488,848.13,845.34,0.86463794]
[1766157710571,1.14987488,848.16,845.42,0.86463794]
[1766157711174,1.14987488,848.16,845.43,0.86463794]
[1766157711572,1.14987488,848.14,845.46,0.86463794]
[1766157712276,1.14987488,848.13,845.46,0.86463794]
[1766157712476,2.84834666,848.9,844.61,0.00912115]
[1766157712477,1.14987488,848.11,845.49,0.86463794]
[1766157712777,1.14987488,848.04,845.42,0.86463794]
[1766157713277,1.14987488,847.93,845.39,0.86463794]
[1766157713976,1.14987488,847.77,845.23,0.86463794]
[1766157714373,1.14987488,847.74,845.26,0.86463794]
[1766157714679,1.14987488,847.71,845.23,0.86463794]
[1766157714876,1.14987488,847.67,845.2,0.86463794]
[1766157715378,1.14987488,847.66,845.2,0.86463794]
[1766157715579,1.14987488,847.64,845.18,0.86463794]
[1766157715779,1.14987488,847.57,845.11,0.86463794]
[1766157715981,1.14987488,847.48,845.02,0.86463794]
[1766157716178,1.14987488,847.48,844.1,2.90863721]